bitfinex/quotes_SOLUSD_20251007
["timestamp","ask_amount","ask_price","bid_price","bid_amount"]
[1759880535561,4.5257198,220.96,220.9,116.04691292]
[1759880535754,8.9099469,220.97,220.91,0.7]
[1759880535953,6.59949685,220.97,220.91,79.9]
[1759880538151,1.38399441,220.95,220.91,79.9]
[1759880538557,2.07399441,220.95,220.91,79.9]
[1759880539156,1.38399441,220.93,220.91,79.2]
[1759880539733,4.52613092,220.94,220.91,79.2]
[1759880539954,4.52613092,220.94,220.91,79.9]
[1759880540454,4.52573652,220.96,220.91,79.2]
[1759880540637,6.59973093,220.96,220.91,79.9]
[1759880541251,5.90973093,220.96,220.92,0.7]
[1759880541448,5.90973093,220.96,220.93,32.34]
[1759880541653,5.90973093,220.96,220.93,33.04]
[1759880541852,5.90973093,220.96,220.93,112.24]
[1759880542359,1.38399441,220.98,220.94,0.7]
[1759880542558,1.38399441,220.98,220.93,111.54]
[1759880542559,1.38399441,220.98,220.93,112.24]
[1759880542864,2.07399441,220.98,220.93,112.24]
[1759880543050,7.52711498,220.99,220.94,0.7]
[1759880543250,1.38399441,220.97,220.94,0.7]
[1759880544474,5.9095813,220.97,220.94,0.7]
[1759880545767,5.9095813,220.97,220.95,32.32]
[1759880545952,5.9095813,220.97,220.95,111.52]
[1759880547452,0.69,220.96,220.95,79.2]
[1759880548862,3.69206863,220.96,220.92,32.32]
[1759880549071,1.38399441,220.93,220.91,32.32]
[1759880549256,2.07399441,220.92,220.91,32.32]
[1759880549570,6.60068067,220.92,220.84,100.67]
[1759880549770,1.38399441,220.87,220.85,32.32]
[1759880550068,0.69,220.86,220.81,0.67]
[1759880550246,2.07399441,220.85,220.82,32.32]
[1759880550441,1.38399441,220.83,220.82,32.32]
[1759880550754,2.07399441,220.83,220.72,0.67]
[1759880550947,1.38399441,220.78,220.73,31.53]
[1759880551143,1.38399441,220.78,220.74,30.86]
[1759880551348,0.69,220.81,220.75,32.99]
[1759880551564,1.38399441,220.78,220.75,32.99]
[1759880552278,0.69,220.81,220.75,32.32]
[1759880552495,1.38399441,220.77,220.67,10.87647521]
[1759880552777,20.8,220.82,220.68,32.99]
[1759880552778,1.38399441,220.73,220.68,32.99]
[1759880553072,21.49,220.76,220.69,32.99]
[1759880553268,21.49,220.76,220.7,32.32]
[1759880553666,21.49,220.76,220.71,32.32]
[1759880553667,1.38399441,220.74,220.71,32.32]
[1759880553857,21.49,220.76,220.71,32.99]
[1759880554059,22.18399441,220.76,220.72,0.67]
[1759880554268,22.18399441,220.76,220.71,32.32]
[1759880554456,1.38399441,220.74,220.71,32.32]
[1759880554658,1.38399441,220.74,220.68,0.67]
[1759880554852,1.38399441,220.74,220.69,32.34]
[1759880555162,0.69,220.74,220.7,32.34]
[1759880555363,20.8,220.76,220.7,33.01]
[1759880555566,1.38399441,220.75,220.71,4.53083231]
[1759880555772,1.38399441,220.75,220.71,5.20083231]
[1759880555987,1.38399441,220.75,220.71,3.53083231]
[1759880556185,0.69,220.75,220.7,32.34]
[1759880556492,1.38399441,220.74,220.71,0.67]
[1759880556947,0.69,220.77,220.72,0.67]
[1759880557146,1.38399441,220.76,220.73,32.34]
[1759880557754,32.76901488,220.79,220.73,32.34]
[1759880557957,0.69,220.78,220.73,36.87041694]
[1759880558157,0.69,220.77,220.73,36.87041694]
[1759880558360,1.38399441,220.75,220.73,32.34]
[1759880559074,2.07399441,220.75,220.7,0.67]
[1759880559388,5.78399441,220.75,220.65,11.32992336]
[1759880559566,1.38399441,220.71,220.66,33.04]
[1759880559887,0.69,220.74,220.68,4.53144825]
[1759880560185,1.38399441,220.72,220.68,4.53144825]
[1759880560368,0.69,220.71,220.68,4.53144825]
[1759880560572,0.69,220.71,220.69,32.34]
[1759880560880,0.69,220.71,220.68,32.34]
[1759880561083,0.69,220.71,220.66,4.53185896]
[1759880561387,0.69,220.7,220.67,32.34]
[1759880561568,1.38399441,220.68,220.67,32.34]
[1759880561766,1.38399441,220.69,220.67,36.87147279]
[1759880561968,1.38399441,220.71,220.67,37.57147279]
[1759880562271,0.69,220.74,220.68,0.7]
[1759880562479,25.2,220.75,220.68,5.23144825]
[1759880562687,20.8,220.73,220.68,5.23144825]
[1759880562871,4.4,220.75,220.69,0.7]
[1759880563066,5.78399441,220.75,220.69,0.7]
[1759880563274,0.69,220.74,220.62,20.8]
[1759880563471,0.69,220.73,220.63,33.04]
[1759880563682,0.69,220.72,220.64,0.7]
[1759880563875,1.38399441,220.73,220.65,15.86222523]
[1759880564082,1.38399441,220.73,220.65,15.56222523]
[1759880564588,1.38399441,220.71,220.66,32.42]
[1759880564794,0.69,220.74,220.66,32.42]
[1759880565286,0.69,220.73,220.66,32.42]
[1759880565870,0.69,220.73,220.67,4.5316536]
[1759880566072,1.38399441,220.72,220.67,4.5316536]
[1759880566279,0.69,220.71,220.67,4.5316536]
[1759880566484,1.38399441,220.7,220.67,4.5316536]
[1759880567095,1.38399441,220.72,220.67,4.5316536]
[1759880567273,2.07399441,220.72,220.67,4.5316536]
[1759880567475,0.69,220.72,220.67,4.5316536]
[1759880567692,5.09,220.75,220.68,0.36]
[1759880567890,5.09,220.75,220.69,4.53124291]
[1759880568100,1.38399441,220.72,220.7,32.42]
[1759880569669,1.38399441,220.73,220.7,32.42]
[1759880569885,2.07399441,220.73,220.7,32.42]
[1759880570100,2.07399441,220.73,220.7,36.95103349]
[1759880570271,4.4,220.75,220.7,32.42]
[1759880570472,1.38782797,220.73,220.7,32.42]
[1759880571195,0.69,220.74,220.71,32.38]
[1759880571421,1.38782797,220.73,220.71,32.38]
[1759880571598,4.4,220.75,220.71,111.58]
[1759880571801,4.4,220.75,220.72,0.36]
[1759880572001,4.4,220.75,220.73,0.36]
[1759880572204,4.4,220.75,220.74,32.4]
[1759880573123,1.38782797,220.76,220.74,32.4]
[1759880573625,0.69,220.78,220.74,32.4]
[1759880573826,1.38782797,220.77,220.74,32.4]
[1759880574128,1.38782797,220.77,220.74,36.93012729]
[1759880574532,13.35684285,220.79,220.74,36.93012729]
[1759880574712,0.69,220.78,220.67,21.16]
[1759880574913,0.69,220.77,220.68,32.78]
[1759880575223,1.38782797,220.75,220.69,0.36]
[1759880576011,1.38782797,220.76,220.69,1.74782797]
[1759880576305,1.38782797,220.76,220.7,4.8910376]
[1759880576610,0.69,220.78,220.7,15.85863161]
[1759880576804,1.38782797,220.76,220.71,0.36]
[1759880577005,2.1677456,220.76,220.72,32.78]
[1759880578330,2.1677456,220.76,220.72,36.95053631]
[1759880578734,2.1677456,220.77,220.72,37.31053631]
[1759880579818,11.96901488,220.79,220.74,4.53021654]
[1759880580019,14.13676048,220.79,220.75,32.76]
[1759880580821,11.96901488,220.79,220.76,0.36]
[1759880581335,11.96901488,220.79,220.75,32.4]
[1759880581532,11.96901488,220.79,220.76,0.36]
[1759880581735,11.96901488,220.79,220.77,0.36]
[1759880581910,11.96901488,220.79,220.78,36.90939577]
[1759880582111,15.36558608,220.82,220.78,37.26939577]
[1759880582312,15.36558608,220.82,220.79,2.5277456]
[1759880582539,15.36558608,220.82,220.78,48.23288521]
[1759880582540,0.66,220.9,220.81,2.1677456]
[1759880582838,0.66,220.9,220.78,48.23288521]
[1759880582839,2.1677456,220.84,220.82,32.4]
[1759880583043,2.1677456,220.83,220.77,10.87647521]
[1759880583338,0.66,220.89,220.81,2.1677456]
[1759880583516,2.8277456,220.89,220.82,32.76]
[1759880583918,2.8277456,220.89,220.83,36.94837023]
[1759880584314,0.66,220.91,220.83,37.30837023]
[1759880584515,2.1677456,220.89,220.83,37.30837023]
[1759880584923,2.1677456,220.89,220.83,48.62929582]
[1759880585122,0.66,220.91,220.83,50.79704142]
[1759880585339,2.8277456,220.91,220.84,2.5277456]
[1759880586114,2.1677456,220.92,220.85,18.37560613]
[1759880586320,0.66,220.97,220.88,2.1677456]
[1759880586620,0.66,220.97,220.85,15.84786053]
[1759880586621,0.66,220.97,220.89,34.9277456]
[1759880586816,2.8277456,220.97,220.9,34.9277456]
[1759880587242,0.1,221.0,220.94,2.1677456]
[1759880587416,0.1,221.0,220.9,32.4]
[1759880587417,2.1677456,220.96,220.9,20.8]
[1759880587617,2.1677456,220.96,220.91,32.42]
[1759880587920,2.1677456,220.97,220.91,32.42]
[1759880588118,2.1677456,220.97,220.92,4.52652543]
[1759880588319,2.8277456,220.97,220.91,36.94663362]
[1759880588642,2.1677456,220.94,220.88,0.36]
[1759880588936,2.1677456,220.93,220.89,32.42]
[1759880589236,2.1677456,220.94,220.89,32.42]
[1759880589417,2.8277456,220.94,220.89,32.42]
[1759880589620,2.1677456,220.95,220.89,32.78]
[1759880590113,6.69378832,220.95,220.89,0.36]
[1759880590339,4.52604272,220.95,220.9,32.4]
[1759880590647,2.8277456,220.94,220.91,32.4]
[1759880590938,0.66,220.94,220.91,32.4]
[1759880591128,2.8277456,220.94,220.91,32.4]
[1759880591336,2.1677456,220.94,220.91,32.4]
[1759880591545,2.8277456,220.93,220.92,32.4]
[1759880591837,4.52604272,220.95,220.92,32.4]
[1759880592036,7.35378832,220.95,220.92,32.4]
[1759880592236,5.18604272,220.95,220.92,32.4]
[1759880592417,0.66,220.95,220.92,32.4]
[1759880592618,6.69331674,220.97,220.92,32.4]
[1759880592931,0.66,220.96,220.92,32.4]
[1759880593125,5.18529194,220.99,220.92,39.09423602]
[1759880593311,5.18529194,220.99,220.92,39.45423602]
[1759880593524,7.35303754,220.99,220.92,39.45423602]
[1759880593726,7.35303754,220.99,220.92,37.28649042]
[1759880594029,7.35303754,220.99,220.92,39.45423602]
[1759880594423,0.76,221.0,220.92,32.76]
[1759880594615,2.1677456,220.98,220.93,32.4]
[1759880595439,2.1677456,220.99,220.93,32.4]
[1759880595644,7.45263959,221.0,220.93,32.76]
[1759880595840,7.45263959,221.0,220.93,34.9277456]
[1759880596029,7.45263959,221.0,220.93,2.5277456]
[1759880596222,7.45263959,221.0,220.94,32.38]
[1759880596737,7.45263959,221.0,220.94,36.90604471]
[1759880596924,2.1677456,220.97,220.94,32.38]
[1759880597129,2.1677456,220.98,220.94,32.38]
[1759880597941,2.1677456,220.98,220.89,20.8]
[1759880598139,15.93711118,221.0,220.9,32.38]
[1759880598140,2.1677456,220.96,220.9,32.38]
[1759880598437,2.1677456,220.94,220.9,32.38]
[1759880598942,2.1677456,220.95,220.9,36.90684263]
[1759880599234,2.8277456,220.95,220.9,36.90684263]
[1759880599622,2.8277456,220.95,220.9,4.52684263]
[1759880599822,2.8277456,220.95,220.91,32.38]
[1759880600025,0.66,220.95,220.91,111.58]
[1759880600518,4.52550589,220.97,220.91,111.58]
[1759880600732,2.1677456,220.96,220.91,111.58]
[1759880600929,2.8277456,220.96,220.91,116.1065891]
[1759880601140,0.66,220.96,220.91,116.1065891]
[1759880601520,2.8277456,220.96,220.91,116.1065891]
[1759880603858,2.1677456,220.92,220.79,22.64531074]
[1759880604016,2.1677456,220.92,220.85,13.04422081]
[1759880604222,2.1677456,220.97,220.9,2.1677456]
[1759880604422,2.1677456,220.98,220.92,2.1677456]
[1759880604839,28.15283723,220.99,220.92,2.1677456]
[1759880605229,2.1677456,220.98,220.92,2.1677456]
[1759880605430,6.69307473,220.98,220.93,4.52632055]
[1759880605632,0.66,220.97,220.94,32.4]
[1759880605832,2.8277456,220.97,220.94,32.4]
[1759880606626,4.52532913,220.98,220.94,32.4]
[1759880606627,6.69307473,220.98,220.94,32.4]
[1759880606831,7.35307473,220.98,220.94,32.4]
[1759880607035,5.18532913,220.98,220.94,32.4]
[1759880607331,7.35307473,220.98,220.94,32.4]
[1759880607959,5.18532913,220.98,220.94,32.4]
[1759880608169,7.40307473,220.98,220.94,32.4]
[1759880609257,7.40307473,220.98,220.92,4.52644004]
[1759880609429,2.1677456,220.96,220.93,32.4]
[1759880609749,2.8777456,220.97,220.94,32.36]
[1759880610451,2.8777456,220.97,220.94,111.56]
[1759880610644,2.1677456,220.99,220.94,111.56]
[1759880610843,0.1,221.0,220.98,2.1677456]
[1759880611034,0.1,221.0,220.99,45.80422081]
[1759880611454,0.1,221.0,220.99,50.32931244]
[1759880611660,12.05812381,221.06,221.0,10.87647521]
[1759880611838,2.8777456,221.12,221.05,2.1677456]
[1759880612152,0.71,221.12,221.06,34.5677456]
[1759880612454,6.7899655,221.14,221.07,34.5677456]
[1759880613071,0.1,221.14,221.08,2.1677456]
[1759880613352,2.1677456,221.12,221.07,32.4]
[1759880613649,4.522344,221.13,221.07,34.8277456]
[1759880613947,4.522344,221.13,221.08,2.1677456]
[1759880614152,5.232344,221.13,221.08,2.1677456]
[1759880614332,5.232344,221.13,221.07,34.8277456]
[1759880614534,0.71,221.13,221.08,2.1677456]
[1759880614867,5.23225574,221.13,221.09,32.38]
[1759880615047,0.71,221.13,221.09,32.38]
[1759880615346,4.62213156,221.14,221.09,32.38]
[1759880615548,7.49987716,221.14,221.09,32.38]
[1759880615750,2.1677456,221.13,221.09,32.38]
[1759880615924,2.8777456,221.13,221.09,32.38]
[1759880616332,2.8777456,221.13,221.07,0.26]
[1759880616528,2.8777456,221.13,221.08,32.38]
[1759880617739,4.52243125,221.12,221.08,32.38]
[1759880619458,0.71,221.13,221.08,34.5477456]
[1759880620063,0.71,221.13,221.08,32.38]
[1759880620239,0.71,221.13,221.08,111.58]
[1759880621253,5.23223349,221.13,221.08,111.58]
[1759880623236,0.71,221.13,221.08,111.58]
[1759880623462,4.62215119,221.14,221.09,0.26]
[1759880623974,0.1,221.14,221.1,0.26]
[1759880624141,0.1,221.14,221.11,32.32]
[1759880624862,0.7,221.13,221.1,79.2]
[1759880625066,5.1,221.12,221.1,79.2]
[1759880625967,5.1,221.12,221.09,32.32]
[1759880626372,9.62246778,221.12,221.09,32.32]
[1759880626746,0.7,221.11,221.09,32.32]
[1759880627863,8.92246778,221.12,221.09,32.32]
[1759880628066,4.4,221.12,221.09,32.32]
[1759880628263,4.4,221.12,221.09,32.58]
[1759880628956,4.4,221.12,221.09,37.10301502]
[1759880629362,4.4,221.12,221.09,36.84301502]
[1759880629570,0.1,221.14,221.1,0.26]
[1759880630476,0.1,221.14,221.11,4.52263579]
[1759880630653,0.1,221.14,221.12,32.32]
[1759880632371,0.7,221.13,221.06,20.8]
[1759880632570,0.7,221.13,221.07,32.32]
[1759880632571,0.7,221.12,221.07,32.32]
[1759880632743,0.7,221.11,221.07,32.32]
[1759880634069,0.1,221.14,221.07,32.32]
[1759880634252,0.7,221.13,221.07,32.32]
[1759880634670,0.7,221.13,221.08,4.5232495]
[1759880635058,4.4,221.11,221.08,4.5232495]
[1759880636356,4.4,221.11,221.08,4.7832495]
[1759880636674,4.4,221.11,221.09,36.82300444]
[1759880638070,4.4,221.11,221.09,32.3]
[1759880638274,0.71,221.1,221.03,32.37041325]
[1759880638581,0.71,221.1,221.04,32.3]
[1759880638773,0.71,221.1,221.04,37.08406804]
[1759880639085,0.71,221.1,221.04,48.39423814]
[1759880639376,4.4,221.11,221.04,48.39423814]
[1759880639582,4.4,221.11,221.05,0.26]
[1759880640080,4.4,221.11,221.05,11.13647521]
[1759880640281,4.4,221.11,221.05,10.87647521]
[1759880640466,4.4,221.11,221.06,0.26]
[1759880640668,4.4,221.11,221.08,4.5232495]
[1759880640976,0.1,221.14,221.09,0.26]
[1759880641182,0.1,221.14,221.1,32.3]
[1759880642460,0.1,221.14,221.11,4.52263579]
[1759880642984,0.1,221.14,221.1,36.8227947]
[1759880643476,0.1,221.14,221.1,37.0827947]
[1759880643869,0.1,221.14,221.1,36.8227947]
[1759880644064,0.1,221.14,221.11,0.26]
[1759880644263,0.1,221.14,221.11,90.33647521]
[1759880644467,0.1,221.14,221.12,0.26]
[1759880644671,0.1,221.14,221.13,32.3]
[1759880645782,0.1,221.14,221.13,37.08222674]
[1759880647585,0.1,221.14,221.13,36.82222674]
[1759880648786,0.1,221.14,221.13,37.08222674]
[1759880650697,0.1,221.14,221.13,36.82222674]
[1759880651181,0.1,221.14,221.13,47.95870195]
[1759880653374,0.1,221.14,221.13,43.17647521]
[1759880653778,0.1,221.14,221.13,47.69870195]
[1759880654790,0.71,221.18,221.15,4.52181777]
[1759880654976,0.71,221.17,221.16,32.3]
[1759880656187,0.71,221.17,221.16,36.82161331]
[1759880657880,4.62059544,221.21,221.16,36.82161331]
[1759880658193,0.71,221.19,221.16,36.82161331]
[1759880658493,0.71,221.18,221.16,36.82161331]
[1759880660074,0.71,221.2,221.16,36.82161331]
[1759880660281,0.71,221.19,221.16,36.82161331]
[1759880660469,0.1,221.21,221.16,36.82161331]
[1759880660668,5.23093992,221.2,221.11,79.1]
[1759880660878,3.70420644,221.19,221.12,32.28]
[1759880661095,0.71,221.18,221.12,32.28]
[1759880661387,0.71,221.17,221.12,32.28]
[1759880661587,0.71,221.16,221.12,32.28]
[1759880661776,2.99420644,221.19,221.12,32.28]
[1759880661978,0.71,221.18,221.12,32.28]
[1759880662184,0.71,221.17,221.12,32.28]
[1759880662381,0.71,221.16,221.12,32.28]
[1759880662587,2.99420644,221.19,221.11,79.1]
[1759880662778,0.71,221.15,221.12,32.28]
[1759880663089,0.71,221.14,221.12,32.28]
[1759880663291,0.71,221.13,221.12,32.28]
[1759880663589,0.71,221.13,221.1,4.52283897]
[1759880663783,0.71,221.12,221.11,32.28]
[1759880663965,5.11,221.12,221.11,32.28]
[1759880665084,5.11,221.12,221.1,4.52283897]
[1759880665273,5.11,221.12,221.11,36.80263579]
[1759880665473,5.11,221.12,221.11,4.52263579]
[1759880665670,5.11,221.12,221.11,36.80263579]
[1759880666066,5.11,221.12,221.09,4.52298072]
[1759880666380,0.71,221.11,221.1,32.28]
[1759880666683,0.71,221.11,221.1,111.38]
[1759880667089,4.4,221.12,221.1,111.38]
[1759880667292,4.4,221.12,221.11,4.52263579]
[1759880669479,4.4,221.12,221.11,15.659111]
[1759880670984,0.72,221.18,221.11,26.96570048]
[1759880671200,0.72,221.18,221.12,32.28]
[1759880672797,4.4,221.17,221.12,32.28]
[1759880673001,5.12,221.17,221.13,4.52222674]
[1759880673177,5.12,221.17,221.14,32.28]
[1759880673376,4.4,221.17,221.14,32.28]
[1759880673592,4.4,221.17,221.14,32.54]
[1759880673879,0.82,221.21,221.15,11.13647521]
[1759880674085,0.82,221.21,221.16,32.28]
[1759880674292,0.72,221.2,221.16,32.28]
[1759880675196,0.72,221.2,221.17,4.52140887]
[1759880675401,0.72,221.2,221.18,32.28]
[1759880675982,0.1,221.21,221.18,32.28]
[1759880676698,0.82,221.21,221.18,32.28]
[1759880677499,0.82,221.21,221.19,4.52100004]
[1759880677707,0.82,221.21,221.2,32.28]
[1759880679600,0.1,221.21,221.2,32.28]
[1759880681582,0.1,221.21,221.2,111.38]
[1759880682496,5.31059129,221.21,221.2,78.38]
[1759880682694,5.31059129,221.21,221.15,78.38]
[1759880683008,0.69,221.2,221.16,32.26]
[1759880683306,0.69,221.19,221.16,32.26]
[1759880683501,0.69,221.18,221.16,32.26]
[1759880683691,0.69,221.17,221.16,32.26]
[1759880685216,0.69,221.19,221.16,32.26]
[1759880685395,0.69,221.18,221.16,32.26]
[1759880685595,0.69,221.18,221.16,36.7816118]
[1759880687503,0.69,221.18,221.16,115.1616118]
[1759880689712,0.69,221.2,221.16,115.1616118]
[1759880689907,7.50195438,221.21,221.17,0.72]
[1759880690112,5.19,221.21,221.18,32.26]
[1759880690494,7.50195438,221.21,221.18,32.26]
[1759880690694,5.19,221.21,221.18,32.26]
[1759880690902,8.19195438,221.21,221.18,32.26]
[1759880691398,4.5,221.21,221.18,32.26]
[1759880691898,4.5,221.21,221.18,36.78112206]
[1759880692617,5.19,221.21,221.18,32.26]
[1759880693397,5.19,221.21,221.18,110.64]
[1759880694092,4.5,221.21,221.18,115.88119555]
[1759880694927,4.5,221.21,221.19,0.72]
[1759880695126,4.5,221.21,221.2,32.26]
[1759880696805,0.1,221.21,221.2,32.26]
[1759880700002,0.1,221.21,221.2,32.95]
[1759880700423,0.1,221.21,221.2,48.34727087]
[1759880704625,0.1,221.21,221.2,48.32727087]
[1759880704843,0.1,221.21,221.2,43.11647521]
[1759880705007,0.81,221.21,221.2,43.11647521]
[1759880705212,0.1,221.21,221.2,43.11647521]
[1759880705414,0.1,221.21,221.2,47.63727087]
[1759880706938,0.1,221.21,221.2,48.32727087]
[1759880707309,0.1,221.23,221.22,20.8]
[1759880707508,0.1,221.25,221.23,10.87647521]
[1759880707709,0.1,221.25,221.24,64.36847304]
[1759880708035,0.1,221.25,221.24,65.05847304]
[1759880708246,0.1,221.25,221.24,46.06781376]
[1759880709214,0.1,221.25,221.24,50.58779206]
[1759880709822,0.1,221.25,221.24,50.13579423]
[1759880710240,1e-08,221.31,221.28,31.67647521]
[1759880710434,1e-08,221.31,221.28,64.36839133]
[1759880710624,1e-08,221.31,221.28,65.05839133]
[1759880710823,1e-08,221.31,221.28,66.86724112]
[1759880711025,1e-08,221.31,221.28,34.62724112]
[1759880711330,1e-08,221.31,221.28,71.38640236]
[1759880715740,1e-08,221.31,221.28,39.14640236]
[1759880715928,1e-08,221.31,221.28,71.36640236]
[1759880718447,0.71,221.3,221.28,38.00448624]
[1759880718635,0.71,221.3,221.28,68.41563645]
[1759880719042,0.81,221.29,221.25,4.51977401]
[1759880719217,0.1,221.29,221.26,32.22]
[1759880719545,0.71,221.28,221.27,32.22]
[1759880723150,5.22919543,221.28,221.27,32.22]
[1759880723543,5.22919543,221.28,221.26,32.22]
[1759880723739,0.71,221.27,221.17,15.39788408]
[1759880723933,0.71,221.26,221.19,10.87647521]
[1759880724135,0.71,221.25,221.21,10.87647521]
[1759880724334,0.71,221.24,221.22,32.22]
[1759880724549,0.71,221.23,221.22,32.22]
[1759880727157,5.23018261,221.23,221.22,32.22]
[1759880727955,0.71,221.23,221.22,32.22]
[1759880728331,0.71,221.23,221.16,20.8]
[1759880728538,0.71,221.22,221.17,32.22]
[1759880728762,0.71,221.21,221.17,32.22]
[1759880728937,0.71,221.2,221.17,32.22]
[1759880729147,0.71,221.19,221.17,32.22]
[1759880729459,0.71,221.18,221.17,32.22]
[1759880729970,0.71,221.2,221.17,32.22]
[1759880730844,4.51977401,221.25,221.17,36.74140046]
[1759880731062,0.71,221.24,221.17,36.74140046]
[1759880731241,0.71,221.23,221.17,36.74140046]
[1759880731446,0.71,221.22,221.17,36.74140046]
[1759880731660,0.71,221.21,221.17,36.74140046]
[1759880731863,0.71,221.2,221.17,36.74140046]
[1759880733252,4.52020163,221.23,221.17,36.74140046]
[1759880733253,0.71,221.22,221.17,36.74140046]
[1759880733662,4.4,221.26,221.18,11.56647521]
[1759880733974,4.4,221.26,221.23,20.8]
[1759880734161,4.4,221.26,221.24,32.91]
[1759880734673,4.4,221.26,221.24,32.22]
[1759880735466,4.4,221.26,221.25,4.51977401]
[1759880735671,4.4,221.26,221.25,16.08624922]
[1759880737061,0.1,221.29,221.26,10.87647521]
[1759880737265,0.1,221.29,221.27,32.22]
[1759880738271,0.1,221.29,221.28,4.51916124]
[1759880738462,0.1,221.29,221.28,15.39563645]
[1759880738769,0.1,221.29,221.27,32.22]
[1759880739169,0.1,221.29,221.27,36.73929664]
[1759880739961,0.1,221.29,221.23,25.3]
[1759880740163,0.72,221.28,221.24,43.07647521]
[1759880740363,0.72,221.27,221.24,43.07647521]
[1759880740779,0.82,221.29,221.24,43.07647521]
[1759880740973,0.72,221.28,221.24,43.07647521]
[1759880741287,0.1,221.29,221.25,0.68]
[1759880741571,0.1,221.29,221.26,43.75647521]
[1759880741979,0.1,221.29,221.27,0.68]
[1759880742170,0.1,221.29,221.28,36.71916124]
[1759880742879,0.1,221.29,221.28,32.2]
[1759880743065,0.82,221.29,221.28,32.2]
[1759880743378,0.1,221.29,221.28,32.2]
[1759880743575,0.1,221.29,221.28,36.71916124]
[1759880744868,0.82,221.29,221.28,36.71916124]
[1759880745875,0.82,221.29,221.22,4.5]
[1759880746067,0.72,221.28,221.23,43.07647521]
[1759880746267,0.1,221.29,221.23,47.59665782]
[1759880746467,0.82,221.29,221.23,47.59665782]
[1759880748265,0.72,221.28,221.23,4.52018261]
[1759880748577,0.72,221.27,221.24,32.2]
[1759880748783,0.82,221.29,221.24,32.2]
[1759880748967,0.72,221.28,221.24,32.2]
[1759880750070,0.72,221.27,221.24,32.2]
[1759880750263,0.72,221.26,221.25,32.2]
[1759880752482,5.23956973,221.26,221.25,32.2]
[1759880752862,16.53849407,221.26,221.15,4.52181777]
[1759880753178,16.53849407,221.26,221.16,32.2]
[1759880753179,0.72,221.25,221.16,32.2]
[1759880753385,0.72,221.24,221.16,32.2]
[1759880753563,0.72,221.23,221.16,32.2]
[1759880753970,0.72,221.22,221.16,36.72157027]
[1759880754187,0.72,221.21,221.16,36.72157027]
[1759880754483,0.72,221.2,221.16,36.72157027]
[1759880754857,0.72,221.2,221.16,32.2]
[1759880755985,0.72,221.22,221.16,37.40158988]
[1759880757582,0.72,221.22,221.16,48.70562315]
[1759880757786,0.65,221.26,221.18,10.87647521]
[1759880757990,0.65,221.26,221.19,32.2]
[1759880758982,5.16975425,221.26,221.19,32.2]
[1759880759192,0.65,221.25,221.19,32.2]
[1759880759394,0.65,221.25,221.19,36.72099489]
[1759880760095,0.65,221.25,221.19,32.2]
[1759880760595,0.65,221.24,221.18,11.58647521]
[1759880760799,5.16998121,221.24,221.19,32.2]
[1759880761293,0.65,221.23,221.19,32.2]
[1759880761472,4.51998121,221.24,221.19,32.91]
[1759880761669,5.16998121,221.24,221.19,32.91]
[1759880761872,0.65,221.23,221.15,0.71]
[1759880762083,0.65,221.23,221.16,32.2]